fUST/lending_fUST_20250408
["ID","MTS","AMOUNT","RATE_DAILY","PERIOD"]
[357505204,1744095048729,-500.82919883,0.00020575,2]
[357505205,1744095048840,-169.81903703,0.00020575,2]
[357505206,1744095048872,-500.0,0.00020575,2]
[357505207,1744095048883,-647.49527232,0.00020575,2]
[357505208,1744095048893,-500.0,0.00020575,2]
[357505209,1744095048904,-500.73174425,0.00020575,2]
[357505210,1744095048914,-503.56205169,0.00020575,2]
[357505211,1744095048924,-500.0,0.00020575,2]
[357505212,1744095048934,-502.8704905,0.00020575,2]
[357505213,1744095048943,-500.0,0.00020602,2]
[357505214,1744095048953,-500.0,0.00020602,2]
[357505215,1744095048963,-500.0,0.00020602,2]
[357505216,1744095048974,-500.0,0.00020602,2]
[357505217,1744095048984,-534.74919523,0.00020675,2]
[357505218,1744095048994,-500.0,0.00020675,2]
[357505219,1744095049005,-500.0,0.00020675,2]
[357505220,1744095049014,-500.0,0.00020675,2]
[357505221,1744095049024,-500.0,0.00020675,2]
[357505222,1744095049034,-500.0,0.00020675,2]
[357505223,1744095049044,-846.51,0.00020675,2]
[357505224,1744095049054,-2419.59,0.00020675,2]
[357505225,1744095049064,-546.08824917,0.00020675,2]
[357505226,1744095049073,-500.0,0.00020675,2]
[357505227,1744095049084,-500.0,0.00020675,2]
[357505228,1744095049094,-762.52,0.00020675,2]
[357505229,1744095049105,-2597.28,0.00020675,2]
[357505230,1744095049116,-843.36,0.00020675,2]
[357505231,1744095049126,-1250.89,0.00020675,2]
[357505232,1744095049136,-500.0,0.00020675,2]
[357505233,1744095049145,-600.74,0.00020675,2]
[357505234,1744095049156,-500.0,0.00020675,2]
[357505235,1744095049166,-801.68,0.00020675,2]
[357505236,1744095049177,-500.0,0.00020675,2]
[357505237,1744095049190,-500.0,0.00020675,2]
[357505238,1744095049199,-500.0,0.00020675,2]
[357505239,1744095049209,-1091.29,0.00020675,2]
[357505240,1744095049219,-500.0,0.00020675,2]
[357505241,1744095049229,-500.0,0.00020675,2]
[357505242,1744095049239,-1039.19,0.00020675,2]
[357505243,1744095049248,-500.0,0.00020676,2]
[357505244,1744095049261,-500.0,0.00020676,2]
[357505245,1744095049271,-512.79858635,0.00020676,2]
[357505246,1744095049280,-500.0,0.00020676,2]
[357505247,1744095049290,-512.88112468,0.00020676,2]
[357505248,1744095049300,-500.0,0.00020676,2]
[357505249,1744095049311,-500.0,0.00020676,2]
[357505250,1744095049321,-439.3034622,0.00020676,2]
[357505251,1744095049330,-500.0,0.00020676,2]
[357505252,1744095049340,-500.0,0.00020676,2]
[357505253,1744095049350,-330.75245248,0.00020676,2]
[357505254,1744095049359,-500.0,0.00020676,2]
[357505255,1744095049371,-500.0,0.00020676,2]
[357505256,1744095049382,-500.0,0.00020676,2]
[357505257,1744095049392,-1123.48,0.00020676,2]
[357505258,1744095049402,-1054.08,0.00020676,2]
[357505259,1744095049413,-539.07,0.00020676,2]
[357505260,1744095049422,-500.0,0.00020676,2]
[357505261,1744095049433,-500.0,0.00020676,2]
[357505262,1744095049443,-500.0,0.00020676,2]
[357505263,1744095049453,-794.89,0.00020676,2]
[357505264,1744095049463,-500.0,0.00020676,2]
[357505265,1744095049473,-500.0,0.00020676,2]
[357505266,1744095049482,-500.0,0.00020676,2]
[357505267,1744095049492,-239.17109604,0.00020676,2]
[357505268,1744095049503,-827.27,0.00020676,2]
[357505269,1744095049515,-507.31,0.00020676,2]
[357505270,1744095049538,-500.0,0.00020676,2]
[357505271,1744095049559,-500.0,0.00020676,2]
[357505272,1744095049570,-500.0,0.00020676,2]
[357505273,1744095049580,-500.0,0.00020676,2]
[357505274,1744095049590,-1730.18,0.00020676,2]
[357505275,1744095049599,-500.0,0.00020676,2]
[357505276,1744095049609,-500.0,0.00020676,2]
[357505277,1744095049620,-645.02,0.00020676,2]
[357505278,1744095049630,-500.0,0.00020676,2]
[357505279,1744095049640,-1081.06,0.00020676,2]
[357505280,1744095049649,-543.8,0.00020676,2]
[357505281,1744095049659,-500.0,0.00020676,2]
[357505282,1744095049669,-500.0,0.00020676,2]
[357505283,1744095049679,-500.0,0.00020676,2]
[357505284,1744095049689,-467.81104568,0.00020676,2]
[357505285,1744095049699,-500.0,0.00020676,2]
[357505286,1744095049709,-1139.09,0.00020676,2]
[357505287,1744095049719,-500.0,0.00020676,2]
[357505288,1744095049729,-514.97,0.00020676,2]
[357505289,1744095049739,-383.92848449,0.00020676,2]
[357505290,1744095049749,-558.01,0.00020676,2]
[357505291,1744095049759,-549.64509128,0.00020676,2]
[357505292,1744095049769,-4044.03,0.00020676,2]
[357505293,1744095049779,-500.0,0.00020676,2]
[357505294,1744095049789,-500.0,0.00020676,2]
[357505295,1744095049799,-500.0,0.00020676,2]
[357505296,1744095049809,-500.0,0.00020676,2]
[357505297,1744095049819,-500.0,0.00020676,2]
[357505298,1744095049830,-500.0,0.00020676,2]
[357505299,1744095049840,-800.66,0.00020676,2]
[357505300,1744095049850,-500.0,0.00020676,2]
[357505301,1744095049860,-500.0,0.00020676,2]
[357505302,1744095049871,-500.0,0.00020676,2]
[357505303,1744095049880,-934.25,0.00020676,2]
[357505304,1744095049890,-500.0,0.00020676,2]
[357505305,1744095049900,-500.0,0.00020775,2]
[357505306,1744095049910,-395.04997939,0.00020775,2]
[357505307,1744095049920,-500.0,0.00020775,2]
[357505308,1744095049929,-500.0,0.00020775,2]
[357505309,1744095049939,-500.0,0.00020775,2]
[357505310,1744095049949,-500.0,0.00020775,2]
[357505311,1744095049959,-500.0,0.00020775,2]
[357505312,1744095049969,-1815.96,0.00020775,2]
[357505313,1744095049979,-500.0,0.00020775,2]
[357505314,1744095049989,-500.0,0.00020775,2]
[357505315,1744095049999,-500.0,0.00020775,2]
[357505316,1744095050009,-500.0,0.00020775,2]
[357505317,1744095050018,-629.78,0.00020775,2]
[357505318,1744095050028,-500.0,0.00020775,2]
[357505319,1744095050038,-500.0,0.00020775,2]
[357505320,1744095050048,-500.0,0.00020776,2]
[357505321,1744095050058,-500.0,0.00020776,2]
[357505322,1744095050067,-531.83683866,0.00020776,2]
[357505323,1744095050078,-500.0,0.00020776,2]
[357505324,1744095050087,-500.0,0.00020776,2]
[357505325,1744095050097,-564.35,0.00020776,2]
[357505326,1744095050107,-500.0,0.00020776,2]
[357505327,1744095050116,-500.0,0.00020776,2]
[357505328,1744095050126,-562.85202726,0.00020776,2]
[357505329,1744095050136,-500.0,0.00020776,2]
[357505330,1744095050146,-500.0,0.00020776,2]
[357505331,1744095050155,-534.07,0.00020776,2]
[357505332,1744095050165,-500.0,0.00020776,2]
[357505333,1744095050175,-500.0,0.00020776,2]
[357505334,1744095050187,-500.0,0.00020776,2]
[357505335,1744095050198,-500.0,0.00020776,2]
[357505336,1744095050208,-500.0,0.00020776,2]
[357505337,1744095050217,-500.0,0.00020776,2]
[357505338,1744095050228,-543.93014497,0.00020776,2]
[357505339,1744095050238,-500.0,0.00020776,2]
[357505340,1744095050248,-500.0,0.00020776,2]
[357505341,1744095050259,-500.0,0.00020776,2]
[357505342,1744095050269,-500.0,0.00020776,2]
[357505343,1744095050279,-515.17095955,0.00020776,2]
[357505344,1744095050288,-196.13708759,0.00020776,2]
[357505345,1744095050299,-500.0,0.00020776,2]
[357505346,1744095050309,-550.99,0.00020776,2]
[357505347,1744095050319,-500.0,0.00020776,2]
[357505348,1744095050329,-612.19,0.00020776,2]
[357505349,1744095050339,-500.0,0.00020776,2]
[357505350,1744095050349,-500.0,0.00020776,2]
[357505351,1744095050358,-500.0,0.00020776,2]
[357505352,1744095050369,-500.0,0.00020776,2]
[357505353,1744095050378,-184.45681545,0.00020776,2]
[357505354,1744095050388,-500.0,0.00020776,2]
[357505355,1744095050397,-500.0,0.00020776,2]
[357505356,1744095050407,-459.00766799,0.00020776,2]
[357505357,1744095050416,-500.0,0.00020776,2]
[357505358,1744095050426,-599.12,0.00020776,2]
[357505359,1744095050436,-544.55,0.00020776,2]
[357505360,1744095050446,-1134.49,0.00020776,2]
[357505361,1744095050455,-500.0,0.00020776,2]
[357505362,1744095050465,-500.0,0.00020776,2]
[357505363,1744095050475,-500.0,0.00020776,2]
[357505364,1744095050484,-213.43034153,0.00020776,2]
[357505365,1744095050494,-500.0,0.00020776,2]
[357505366,1744095050503,-195.0,0.00020792,2]
[357505367,1744095050513,-207.4,0.00020938,2]
[357505368,1744095050523,-500.0,0.00020949,2]
[357505369,1744095050532,-500.0,0.00020949,2]
[357505370,1744095050545,-500.0,0.00020949,2]
[357505371,1744095050556,-500.0,0.00020949,2]
[357505372,1744095050566,-846.51,0.00020949,2]
[357505373,1744095050576,-2419.59,0.00020949,2]
[357505374,1744095050586,-500.0,0.00020949,2]
[357505375,1744095050596,-500.0,0.00020949,2]
[357505376,1744095050605,-762.52,0.00020949,2]
[357505377,1744095050615,-2597.28,0.00020949,2]
[357505378,1744095050626,-843.36,0.00020949,2]
[357505379,1744095050635,-1250.89,0.00020949,2]
[357505380,1744095050645,-500.0,0.00020949,2]
[357505381,1744095050654,-600.74,0.00020949,2]
[357505382,1744095050664,-500.0,0.00020949,2]
[357505383,1744095050673,-801.68,0.00020949,2]
[357505384,1744095050683,-500.0,0.00020949,2]
[357505385,1744095050692,-500.0,0.00020949,2]
[357505386,1744095050702,-500.0,0.00020949,2]
[357505387,1744095050711,-1091.29,0.00020949,2]
[357505388,1744095050721,-500.0,0.00020949,2]
[357505389,1744095050730,-500.0,0.00020949,2]
[357505390,1744095050740,-1039.19,0.00020949,2]
[357505391,1744095050750,-500.0,0.0002095,2]
[357505392,1744095050760,-500.0,0.0002095,2]
[357505393,1744095050769,-500.0,0.0002095,2]
[357505394,1744095050779,-500.0,0.0002095,2]
[357505395,1744095050790,-500.0,0.0002095,2]
[357505396,1744095050800,-500.0,0.0002095,2]
[357505397,1744095050810,-500.0,0.0002095,2]
[357505398,1744095050819,-500.0,0.0002095,2]
[357505399,1744095050830,-500.0,0.0002095,2]
[357505400,1744095050839,-1123.48,0.0002095,2]
[357505401,1744095050849,-1054.08,0.0002095,2]
[357505402,1744095050859,-539.07,0.0002095,2]
[357505403,1744095050869,-202.94235851,0.0002095,2]
[357505404,1744095050879,-500.0,0.0002095,2]
[357505405,1744095050889,-794.89,0.0002095,2]
[357505406,1744095050899,-471.55735103,0.0002095,2]
[357505407,1744095050908,-500.0,0.0002095,2]
[357505408,1744095050918,-500.0,0.0002095,2]
[357505409,1744095050928,-827.27,0.0002095,2]
[357505410,1744095050938,-507.31,0.0002095,2]
[357505411,1744095050947,-500.0,0.0002095,2]
[357505412,1744095050957,-500.0,0.0002095,2]
[357505413,1744095050967,-500.0,0.0002095,2]
[357505414,1744095050977,-1730.18,0.0002095,2]
[357505415,1744095050987,-500.0,0.0002095,2]
[357505416,1744095050996,-500.0,0.0002095,2]
[357505417,1744095051005,-500.0,0.0002095,2]
[357505418,1744095051015,-645.02,0.0002095,2]
[357505419,1744095051024,-500.0,0.0002095,2]
[357505420,1744095051034,-1081.06,0.0002095,2]
[357505421,1744095051043,-543.8,0.0002095,2]
[357505422,1744095051053,-500.0,0.0002095,2]
[357505423,1744095051063,-500.0,0.0002095,2]
[357505424,1744095051072,-500.0,0.0002095,2]
[357505425,1744095051082,-214.18420576,0.0002095,2]
[357505426,1744095051091,-1139.09,0.0002095,2]
[357505427,1744095051101,-500.0,0.0002095,2]
[357505428,1744095051110,-514.97,0.0002095,2]
[357505429,1744095051120,-558.01,0.0002095,2]
[357505430,1744095051130,-4044.03,0.0002095,2]
[357505431,1744095051140,-500.0,0.0002095,2]
[357505432,1744095051150,-500.0,0.0002095,2]
[357505433,1744095051160,-500.0,0.0002095,2]
[357505434,1744095051170,-500.0,0.0002095,2]
[357505435,1744095051180,-800.66,0.0002095,2]
[357505436,1744095051194,-500.0,0.0002095,2]
[357505437,1744095051204,-500.0,0.0002095,2]
[357505438,1744095051213,-500.0,0.0002095,2]
[357505439,1744095051223,-934.25,0.0002095,2]
[357505440,1744095051234,-236.12830377,0.0002095,2]
[357505441,1744095051244,-153.92,0.00021,2]
[357505442,1744095051254,-500.87750444,0.00021019,2]
[357505443,1744095051264,-502.5418433,0.00021019,2]
[357505444,1744095051273,-500.0,0.00021049,2]
[357505445,1744095051283,-500.0,0.00021049,2]
[357505446,1744095051292,-500.0,0.00021049,2]
[357505447,1744095051301,-500.0,0.00021049,2]
[357505448,1744095051311,-500.0,0.00021049,2]
[357505449,1744095051320,-1815.96,0.00021049,2]
[357505450,1744095051330,-500.0,0.00021049,2]
[357505451,1744095051340,-500.0,0.00021049,2]
[357505452,1744095051380,-500.0,0.00021049,2]
[357505453,1744095051389,-629.78,0.00021049,2]
[357505454,1744095051398,-500.0,0.00021049,2]
[357505455,1744095051408,-283.11,0.00021049,2]
[357505456,1744095051417,-500.0,0.0002105,2]
[357505457,1744095051427,-500.0,0.0002105,2]
[357505458,1744095051436,-500.0,0.0002105,2]
[357505459,1744095051446,-500.0,0.0002105,2]
[357505460,1744095051455,-564.35,0.0002105,2]
[357505461,1744095051464,-500.0,0.0002105,2]
[357505462,1744095051474,-609.09158987,0.0002105,2]
[357505463,1744095051483,-500.0,0.0002105,2]
[357505464,1744095051494,-534.07,0.0002105,2]
[357505465,1744095051503,-414.24291645,0.0002105,2]
[357505466,1744095051513,-500.0,0.0002105,2]
[357505467,1744095051523,-500.0,0.0002105,2]
[357505468,1744095051532,-500.0,0.0002105,2]
[357505469,1744095051542,-188.56560427,0.0002105,2]
[357505470,1744095051555,-500.0,0.0002105,2]
[357505471,1744095051565,-500.0,0.0002105,2]
[357505472,1744095051575,-500.0,0.0002105,2]
[357505473,1744095051587,-500.0,0.0002105,2]
[357505474,1744095051601,-550.99,0.0002105,2]
[357505475,1744095051611,-500.0,0.0002105,2]
[357505476,1744095051621,-612.19,0.0002105,2]
[357505477,1744095051631,-500.0,0.0002105,2]
[357505478,1744095051640,-500.0,0.0002105,2]
[357505479,1744095051650,-500.0,0.0002105,2]
[357505480,1744095051660,-500.0,0.0002105,2]
[357505481,1744095051669,-500.0,0.0002105,2]
[357505482,1744095051680,-500.0,0.0002105,2]
[357505483,1744095051690,-599.12,0.0002105,2]
[357505484,1744095051700,-544.55,0.0002105,2]
[357505485,1744095051709,-1134.49,0.0002105,2]
[357505486,1744095051718,-500.0,0.0002105,2]
[357505487,1744095051728,-500.0,0.0002105,2]
[357505488,1744095051738,-500.0,0.0002105,2]
[357505489,1744095051747,-500.0,0.00021223,2]
[357505490,1744095051757,-163.37508341,0.00021223,2]
[357505491,1744095051766,-500.0,0.00021223,2]
[357505492,1744095051776,-846.51,0.00021223,2]
[357505493,1744095051786,-2419.59,0.00021223,2]
[357505494,1744095051796,-500.0,0.00021223,2]
[357505495,1744095051806,-500.0,0.00021223,2]
[357505496,1744095051816,-762.52,0.00021223,2]
[357505497,1744095051825,-2597.28,0.00021223,2]
[357505498,1744095051835,-843.36,0.00021223,2]
[357505499,1744095051845,-1250.89,0.00021223,2]
[357505500,1744095051855,-500.0,0.00021223,2]
[357505501,1744095051865,-600.74,0.00021223,2]
[357505502,1744095051875,-500.0,0.00021223,2]
[357505503,1744095051884,-801.68,0.00021223,2]
[357505504,1744095051893,-500.0,0.00021223,2]
[357505505,1744095051903,-500.0,0.00021223,2]
[357505506,1744095051915,-500.0,0.00021223,2]
[357505507,1744095051924,-1091.29,0.00021223,2]
[357505508,1744095051934,-500.0,0.00021223,2]
[357505509,1744095051943,-500.0,0.00021223,2]
[357505510,1744095051953,-1039.19,0.00021223,2]
[357505511,1744095051963,-500.0,0.00021224,2]
[357505512,1744095051974,-500.0,0.00021224,2]
[357505513,1744095051986,-500.0,0.00021224,2]
[357505514,1744095051998,-500.0,0.00021224,2]
[357505515,1744095052010,-500.0,0.00021224,2]
[357505516,1744095052021,-500.0,0.00021224,2]
[357505517,1744095052031,-500.0,0.00021224,2]
[357505518,1744095052042,-500.0,0.00021224,2]
[357505519,1744095052052,-500.0,0.00021224,2]
[357505520,1744095052064,-1123.48,0.00021224,2]
[357505521,1744095052074,-1054.08,0.00021224,2]
[357505522,1744095052085,-539.07,0.00021224,2]
[357505523,1744095052096,-500.0,0.00021224,2]
[357505524,1744095052106,-794.89,0.00021224,2]
[357505525,1744095052119,-500.0,0.00021224,2]
[357505526,1744095052129,-500.0,0.00021224,2]
[357505527,1744095052139,-827.27,0.00021224,2]
[357505528,1744095052150,-507.31,0.00021224,2]
[357505529,1744095052160,-500.0,0.00021224,2]
[357505530,1744095052171,-500.0,0.00021224,2]
[357505531,1744095052184,-500.0,0.00021224,2]
[357505532,1744095052195,-500.0,0.00021224,2]
[357505533,1744095052205,-1730.18,0.00021224,2]
[357505534,1744095052215,-500.0,0.00021224,2]
[357505535,1744095052227,-500.0,0.00021224,2]
[357505536,1744095052236,-645.02,0.00021224,2]
[357505537,1744095052246,-500.0,0.00021224,2]
[357505538,1744095052256,-1081.06,0.00021224,2]
[357505539,1744095052266,-543.8,0.00021224,2]
[357505540,1744095052276,-500.0,0.00021224,2]
[357505541,1744095052287,-500.0,0.00021224,2]
[357505542,1744095052297,-500.0,0.00021224,2]
[357505543,1744095052307,-1139.09,0.00021224,2]
[357505544,1744095052317,-458.52454897,0.00021224,2]
[357505545,1744095052327,-514.97,0.00021224,2]
[357505546,1744095052337,-558.01,0.00021224,2]
[357505547,1744095052347,-4044.03,0.00021224,2]
[357505548,1744095052359,-500.0,0.00021224,2]
[357505549,1744095052370,-515.69987028,0.00021224,2]
[357505550,1744095052380,-339.76460408,0.00021224,2]
[357505551,1744095052390,-500.0,0.00021224,2]
[357505552,1744095052400,-800.66,0.00021224,2]
[357505553,1744095052410,-500.0,0.00021224,2]
[357505554,1744095052422,-500.0,0.00021224,2]
[357505555,1744095052433,-500.0,0.00021224,2]
[357505556,1744095052444,-934.25,0.00021224,2]
[357505557,1744095052454,-484.60165933,0.00021311,2]
[357505558,1744095052466,-262.56888083,0.00021323,2]
[357505559,1744095052478,-500.0,0.00021323,2]
[357505560,1744095052491,-500.0,0.00021323,2]
[357505561,1744095052502,-500.0,0.00021323,2]
[357505562,1744095052512,-500.0,0.00021323,2]
[357505563,1744095052522,-1815.96,0.00021323,2]
[357505564,1744095052533,-500.0,0.00021323,2]
[357505565,1744095052544,-629.78,0.00021323,2]
[357505566,1744095052556,-500.0,0.00021323,2]
[357505567,1744095052566,-500.0,0.00021324,2]
[357505568,1744095052576,-500.0,0.00021324,2]
[357505569,1744095052585,-500.0,0.00021324,2]
[357505570,1744095052595,-500.0,0.00021324,2]
[357505571,1744095052605,-564.35,0.00021324,2]
[357505572,1744095052616,-500.0,0.00021324,2]
[357505573,1744095052626,-534.07,0.00021324,2]
[357505574,1744095052635,-500.0,0.00021324,2]
[357505575,1744095052645,-548.35516944,0.00021324,2]
[357505576,1744095052655,-500.0,0.00021324,2]
[357505577,1744095052664,-500.0,0.00021324,2]
[357505578,1744095052674,-500.0,0.00021324,2]
[357505579,1744095052683,-500.0,0.00021324,2]
[357505580,1744095052693,-550.99,0.00021324,2]
[357505581,1744095052703,-500.0,0.00021324,2]
[357505582,1744095052712,-612.19,0.00021324,2]
[357505583,1744095052722,-525.03,0.00021324,2]
[357505584,1744095052732,-500.0,0.00021324,2]
[357505585,1744095052741,-426.59909462,0.00021324,2]
[357505586,1744095052751,-500.0,0.00021324,2]
[357505587,1744095052761,-602.08296778,0.00021324,2]
[357505588,1744095052771,-500.0,0.00021324,2]
[357505589,1744095052781,-599.12,0.00021324,2]
[357505590,1744095052791,-544.55,0.00021324,2]
[357505591,1744095052801,-1134.49,0.00021324,2]
[357505592,1744095052810,-500.0,0.00021324,2]
[357505593,1744095052820,-500.0,0.00021324,2]
[357505594,1744095052829,-500.0,0.00021324,2]
[357505595,1744095052839,-500.0,0.00021497,2]
[357505596,1744095052849,-846.51,0.00021497,2]
[357505597,1744095052859,-2419.59,0.00021497,2]
[357505598,1744095052869,-500.0,0.00021497,2]
[357505599,1744095052879,-500.0,0.00021497,2]
[357505600,1744095052888,-762.52,0.00021497,2]
[357505601,1744095052898,-2597.28,0.00021497,2]
[357505602,1744095052907,-843.36,0.00021497,2]
[357505603,1744095052917,-1250.89,0.00021497,2]
[357505604,1744095052926,-500.0,0.00021497,2]
[357505605,1744095052936,-600.74,0.00021497,2]
[357505606,1744095052945,-500.0,0.00021497,2]
[357505607,1744095052955,-801.68,0.00021497,2]
[357505608,1744095052965,-500.0,0.00021497,2]
[357505609,1744095052974,-500.0,0.00021497,2]
[357505610,1744095052984,-1091.29,0.00021497,2]
[357505611,1744095052993,-500.0,0.00021497,2]
[357505612,1744095053003,-500.0,0.00021497,2]
[357505613,1744095053013,-1039.19,0.00021497,2]
[357505614,1744095053023,-154.80629526,0.00021498,2]
[357505615,1744095053033,-500.0,0.00021498,2]
[357505616,1744095053043,-500.0,0.00021498,2]
[357505617,1744095053053,-500.0,0.00021498,2]
[357505618,1744095053063,-558.08016648,0.00021498,2]
[357505619,1744095053073,-500.0,0.00021498,2]
[357505620,1744095053082,-500.0,0.00021498,2]
[357505621,1744095053092,-500.0,0.00021498,2]
[357505622,1744095053102,-500.0,0.00021498,2]
[357505623,1744095053112,-1123.48,0.00021498,2]
[357505624,1744095053123,-1054.08,0.00021498,2]
[357505625,1744095053132,-539.07,0.00021498,2]
[357505626,1744095053142,-500.0,0.00021498,2]
[357505627,1744095053152,-794.89,0.00021498,2]
[357505628,1744095053162,-500.0,0.00021498,2]
[357505629,1744095053172,-203.13274718,0.00021498,2]
[357505630,1744095053182,-827.27,0.00021498,2]
[357505631,1744095053196,-507.31,0.00021498,2]
[357505632,1744095053205,-500.0,0.00021498,2]
[357505633,1744095053215,-500.0,0.00021498,2]
[357505634,1744095053226,-319.46589594,0.00021498,2]
[357505635,1744095053235,-1730.18,0.00021498,2]
[357505636,1744095053245,-500.0,0.00021498,2]
[357505637,1744095053255,-500.0,0.00021498,2]
[357505638,1744095053266,-645.02,0.00021498,2]
[357505639,1744095053276,-500.0,0.00021498,2]
[357505640,1744095053286,-1081.06,0.00021498,2]
[357505641,1744095053296,-543.8,0.00021498,2]
[357505642,1744095053305,-500.0,0.00021498,2]
[357505643,1744095053315,-500.0,0.00021498,2]
[357505644,1744095053324,-500.0,0.00021498,2]
[357505645,1744095053334,-1139.09,0.00021498,2]
[357505646,1744095053344,-514.97,0.00021498,2]
[357505647,1744095053354,-558.01,0.00021498,2]
[357505648,1744095053363,-4044.03,0.00021498,2]
[357505649,1744095053374,-500.0,0.00021498,2]
[357505650,1744095053384,-500.0,0.00021498,2]
[357505651,1744095053394,-800.66,0.00021498,2]
[357505652,1744095053403,-193.78895475,0.00021498,2]
[357505653,1744095053413,-500.0,0.00021498,2]
[357505654,1744095053422,-500.0,0.00021498,2]
[357505655,1744095053432,-934.25,0.00021498,2]
[357505656,1744095053441,-500.0,0.00021597,2]
[357505657,1744095053451,-500.0,0.00021597,2]
[357505658,1744095053460,-500.0,0.00021597,2]
[357505659,1744095053470,-1815.96,0.00021597,2]
[357505660,1744095053479,-500.0,0.00021597,2]
[357505661,1744095053489,-629.78,0.00021597,2]
[357505662,1744095053499,-528.70287904,0.00021597,2]
[357505663,1744095053508,-299.31598052,0.00021598,2]
[357505664,1744095053518,-500.0,0.00021598,2]
[357505665,1744095053528,-500.0,0.00021598,2]
[357505666,1744095053538,-500.0,0.00021598,2]
[357505667,1744095053548,-564.35,0.00021598,2]
[357505668,1744095053558,-500.0,0.00021598,2]
[357505669,1744095053568,-534.07,0.00021598,2]
[357505670,1744095053577,-500.0,0.00021598,2]
[357505671,1744095053587,-500.0,0.00021598,2]
[357505672,1744095053598,-372.65543915,0.00021598,2]
[357505673,1744095053608,-500.0,0.00021598,2]
[357505674,1744095053618,-500.0,0.00021598,2]
[357505675,1744095053628,-550.99,0.00021598,2]
[357505676,1744095053638,-500.0,0.00021598,2]
[357505677,1744095053648,-612.19,0.00021598,2]
[357505678,1744095053659,-500.0,0.00021598,2]
[357505679,1744095053690,-500.0,0.00021598,2]
[357505680,1744095053700,-599.12,0.00021598,2]
[357505681,1744095053710,-544.55,0.00021598,2]
[357505682,1744095053720,-1134.49,0.00021598,2]
[357505683,1744095053730,-500.0,0.00021598,2]
[357505684,1744095053740,-500.0,0.00021598,2]
[357505685,1744095053750,-500.0,0.00021598,2]
[357505686,1744095053760,-500.0,0.00021607,2]
[357505687,1744095053770,-837.41003169,0.00021737,2]
[357505688,1744095053780,-160.0,0.00021737,2]
[357505689,1744095053790,-160.0,0.00021738,2]
[357505690,1744095053800,-500.0,0.00021771,2]
[357505691,1744095053811,-846.51,0.00021771,2]
[357505692,1744095053821,-2419.59,0.00021771,2]
[357505693,1744095053832,-500.0,0.00021771,2]
[357505694,1744095053842,-762.52,0.00021771,2]
[357505695,1744095053852,-2597.28,0.00021771,2]
[357505696,1744095053862,-843.36,0.00021771,2]
[357505697,1744095053872,-1250.89,0.00021771,2]
[357505698,1744095053883,-500.0,0.00021771,2]
[357505699,1744095053892,-600.74,0.00021771,2]
[357505700,1744095053903,-500.0,0.00021771,2]
[357505701,1744095053913,-801.68,0.00021771,2]
[357505702,1744095053923,-466.46601407,0.00021771,2]
[357505703,1744095053932,-500.0,0.00021771,2]